[Event "XVII MetLife Najdorf Open 2017"]
[Site "Warsaw"]
[Date "2017.07.13"]
[Round "5.60"]
[White "Hacker, Jonas"]
[Black "Mis, Mieszko"]
[Result "1/2-1/2"]
[ECO "C67"]
[WhiteElo "2297"]
[BlackElo "2137"]
[Annotator "ChessBase"]
[PlyCount "108"]
[EventDate "2017.??.??"]
[EventType "swiss"]
[EventCountry "POL"]
[SourceTitle "playchess.com"]
[Source "ChessBase"]
[SourceQuality "1"]
[TimeControl "40/5400+30:1800+30"]

1. e4 e5 2. Nf3 Nc6 3. Bb5 Nf6 4. O-O Nxe4 5. Re1 Nd6 6. Nxe5 Be7 7. Bf1 Nxe5 8. Rxe5 O-O 9. c3 Bf6 10. Re1 Re8 11. Rxe8+ Nxe8 12. d4 d5 13. Bf4 c6 14. Nd2 Bf5 15. Qb3 Qb6 16. Re1 h6 17. a4 g5 18. Bg3 Ng7 19. a5 Qxb3 20. Nxb3 Nh5 21. Bd6 Rd8 22. Bc7 Rc8 23. Bd6 Rd8 24. Bc7 Rc8 25. Be5 Re8 26. g3 b6 27. a6 Bc8 28. Be2 g4 29. h3 Bxe5 30. Bxg4 Bxg4 31. hxg4 Nf6 32. Rxe5 Rxe5 33. dxe5 Nxg4 34. Nd4 Nxe5 35. f4 c5 36. fxe5 cxd4 37. cxd4 f6 38. Kf2 Kf7 39. exf6 Kxf6 40. g4 b5 41. Kg3 Kg5 42. b4 Kf6 43. Kf4 Ke6 44. Kg3 Kf6 45. Kh4 Kg6 46. Kh3 Kf6 47. Kg2 Kg5 48. Kg3 Kf6 49. Kf4 Ke6 50. g5 h5 51. g6 Kf6 52. g7 Kxg7 53. Kg5 h4 54. Kxh4 Kh6 1/2-1/2

[Event "XVII MetLife Najdorf Open 2017"]
[Site "Warsaw"]
[Date "2017.07.15"]
[Round "7"]
[White "Barski, Radoslaw"]
[Black "Kubicka, Anna"]
[Result "1-0"]
[ECO "B12"]
[WhiteElo "2402"]
[BlackElo "2152"]
[Annotator "RC"]
[PlyCount "83"]
[EventDate "2017.??.??"]
[EventType "swiss"]
[EventCountry "POL"]
[SourceTitle "playchess.com"]
[Source "ChessBase"]
[SourceQuality "1"]
[TimeControl "40/5400+30:1800+30"]

1. e4 {[%emt 0:00:00]} c6 {[%emt 0:00:25]} 2. d4 {[%emt 0:00:00]} d5 {[%emt 0:00:09]} 3. e5 {[%emt 0:00:00]} Bf5 {[%emt 0:00:23]} 4. Nf3 {[%emt 0:00:00]} e6 {[%emt 0:00:11]} 5. Be2 {[%emt 0:00:00]} Nd7 {[%emt 0:00:28]} 6. O-O {[%emt 0:00:06]} Ne7 {[%emt 0:00:28]} 7. a4 {[%emt 0:02:07]} c5 {[%emt 0:00:38]} 8. a5 {[%emt 0:04:14]} a6 {[%emt 0:01:02]} 9. dxc5 {[%emt 0:22:06]} Nc6 {[%emt 0:01:09]} 10. Bf4 {[%emt 0:00:36]} Bxc5 {[%emt 0:02:43]} 11. c3 {[%emt 0:01:13]} O-O {[%emt 0:01:29]} 12. b4 {[%emt 0:02:35]} Be7 {[%emt 0:02:46]} 13. Re1 {[%emt 0:04:23]} Qc7 {[%emt 0:04:13]} 14. Bd3 {[%emt 0:12:14]} Bg4 {[%emt 0:10:56]} 15. Nbd2 {[%emt 0:00:45]} Rac8 {[%emt 0:09:51]} 16. Qb1 {[%emt 0:04:29]} h6 {[%emt 0:00:39]} 17. h3 {[%emt 0:04:23]} Bxf3 {[%emt 0:00:43]} 18. Nxf3 {[%emt 0:00:05]} d4 {[%emt 0:03:23]} 19. cxd4 {[%emt 0:02:37]} Bxb4 {[%emt 0:10:54]} 20. Rc1 {[%emt 0:01:27]} Ndb8 {[%emt 0:00:49]} 21. d5 {[%emt 0:12:14]} exd5 {[%emt 0:00:51]} 22. Bh7+ {[%emt 0:00:06]} Kh8 {[%emt 0:00:15]} 23. Bf5 {[%emt 0:00:03]} Qe7 {[%emt 0:05:41]} 24. Bxc8 {[%emt 0:01:53]} Rxc8 {[%emt 0:00:10]} 25. Ra4 {[%emt 0:09:05]} Rd8 {[%emt 0:01:34]} 26. e6 {[%emt 0:02:05]} fxe6 {[%emt 0:12:10]} 27. Ne5 {[%emt 0:00:22]} Nxe5 {[%emt 0:00:10]} 28. Rxb4 {[%emt 0:00:25]} Nc4 {[%emt 0:01:15]} 29. Rxb7 {[%emt 0:00:50]} Nd7 {[%emt 0:00:20]} 30. Ra7 {[%emt 0:06:28]} Qf8 {[%emt 0:01:48]} 31. Bc7 {[%emt 0:01:57]} Rc8 {[%emt 0:08:22]} 32. Qg6 {[%emt 0:01:18]} Qf6 {[%emt 0:05:35]} 33. Qg3 {[%emt 0:03:05]} Nxa5 {[%emt 0:03:41]} 34. Qd6 {[%emt 0:00:20]} Nb8 {[%emt 0:06:52]} 35. Ra8 {[%emt 0:01:38]} Qb2 {[%emt 0:01:45]} 36. Re1 {[%emt 0:00:39]} Nc4 {[%emt 0:00:33]} 37. Qg3 {[%emt 0:01:01]} e5 {[%emt 0:00:32]} 38. Rxe5 {[%emt 0:01:14]} Nxe5 {[%emt 0:03:29]} 39. Bxe5 {[%emt 0:00:04]} Qb7 {[%emt 0:00:38]} 40. Bd4 {[%emt 0:00:00]} Kh7 {[%emt 0:00:56]} 41. Ra7 {[%emt 0:01:14]} Qb1+ {[%emt 0:03:54]} 42. Kh2 {[%emt 0:03:33]} 1-0

[Event "XVII MetLife Najdorf Open 2017"]
[Site "Warsaw"]
[Date "2017.07.15"]
[Round "7"]
[White "Gumularz, Szymon"]
[Black "Krstulovic, Alex"]
[Result "0-1"]
[ECO "C54"]
[WhiteElo "2391"]
[BlackElo "2252"]
[Annotator "NA RC"]
[PlyCount "80"]
[EventDate "2017.??.??"]
[EventType "swiss"]
[EventCountry "POL"]
[SourceTitle "playchess.com"]
[Source "ChessBase"]
[SourceQuality "1"]
[TimeControl "40/5400+30:1800+30"]

1. e4 {[%emt 0:04:33]} e5 {[%emt 0:00:35]} 2. Nf3 {[%emt 0:00:10]} Nc6 {[%emt 0:00:08]} 3. Bc4 {[%emt 0:00:05]} Bc5 {[%emt 0:00:23]} 4. c3 {[%emt 0:00:06]} Nf6 {[%emt 0:00:31]} 5. d3 {[%emt 0:00:07]} O-O {[%emt 0:00:28]} 6. O-O {[%emt 0:00:17]} a6 {[%emt 0:01:24]} 7. Bb3 {[%emt 0:00:58]} h6 {[%emt 0:04:48]} 8. d4 {[%emt 0:15:46]} Ba7 {[%emt 0:19:36]} 9. Nxe5 {[%emt 0:11:01]} Nxe5 {[%emt 0:02:28]} 10. dxe5 {[%emt 0:00:04]} Nxe4 {[%emt 0:00:05]} 11. Bd5 {[%emt 0:12:58]} Nxf2 {[%emt 0:06:40]} 12. Rxf2 {[%emt 0:01:11]} d6 {[%emt 0:02:34]} 13. Qe2 {[%emt 0:11:10]} dxe5 {[%emt 0:14:07]} 14. Bb3 {[%emt 0:01:00]} Bxf2+ {[%emt 0:00:27]} 15. Qxf2 {[%emt 0:03:44]} b6 {[%emt 0:10:48]} 16. Nd2 {[%emt 0:03:48]} Qe7 {[%emt 0:03:56]} 17. Nf3 {[%emt 0:06:56]} Kh7 {[%emt 0:10:30]} 18. Qg3 {[%emt 0:04:56]} Re8 {[%emt 0:01:30]} 19. Bd2 {[%emt 0:13:07]} e4 {[%emt 0:07:34]} 20. Nd4 {[%emt 0:00:52]} c5 {[%emt 0:01:13]} 21. Rf1 {[%emt 0:02:36]} e3 {[%emt 0:04:29]} 22. Nc6 {[%emt 0:03:41]} Qg5 {[%emt 0:01:06]} 23. Bc2+ {[%emt 0:00:54]} f5 {[%emt 0:02:17]} 24. Be1 {[%emt 0:00:38]} e2 {[%emt 0:01:35]} 25. Rf4 {[%emt 0:01:02]} Qxg3 {[%emt 0:00:36]} 26. hxg3 {[%emt 0:00:06]} g6 {[%emt 0:02:14]} 27. g4 {[%emt 0:00:28]} Bb7 {[%emt 0:01:17]} 28. gxf5 {[%emt 0:00:10]} Bxc6 {[%emt 0:00:33]} 29. fxg6+ {[%emt 0:00:06]} Kg8 {[%emt 0:00:06]} 30. Rf7 {[%emt 0:01:54]} Bd5 {[%emt 0:00:55]} 31. Rd7 {[%emt 0:00:27]} Rf8 {[%emt 0:00:26]} 32. Rxd5 {[%emt 0:00:36]} Rf1+ {[%emt 0:00:05]} 33. Kh2 {[%emt 0:00:02]} Rxe1 {[%emt 0:00:10]} 34. Re5 {[%emt 0:00:03]} Rd8 {[%emt 0:01:22]} 35. Re7 {[%emt 0:00:09]} c4 {[%emt 0:00:31]} 36. Bf5 {[%emt 0:00:14]} Rdd1 {[%emt 0:00:21]} 37. Kg3 {[%emt 0:01:39]} Rf1 {[%emt 0:00:16]} 38. Re8+ {[%emt 0:00:39]} Kg7 {[%emt 0:00:04]} 39. Re7+ {[%emt 0:00:04]} Kf8 {[%emt 0:00:35]} 40. Rxe2 {[%emt 0:00:00]} Rxf5 {[%emt 0:00:06]} 0-1

[Event "XVII MetLife Najdorf Open 2017"]
[Site "Warsaw"]
[Date "2017.07.15"]
[Round "7"]
[White "Moehn, Hans"]
[Black "AlHuwar, Jasem"]
[Result "1-0"]
[ECO "A01"]
[WhiteElo "2380"]
[BlackElo "2275"]
[Annotator "NA RC"]
[PlyCount "87"]
[EventDate "2017.??.??"]
[EventType "swiss"]
[EventCountry "POL"]
[SourceTitle "playchess.com"]
[Source "ChessBase"]
[SourceQuality "1"]
[TimeControl "40/5400+30:1800+30"]

1. b3 c5 2. Bb2 Nc6 3. c4 e5 4. g3 g6 5. Bg2 Bg7 6. e3 Nge7 7. Nc3 O-O 8. d3 d6 9. Nge2 Be6 10. Nd5 Qd7 11. O-O Bh3 12. Qd2 h5 13. f4 Bxg2 14. Kxg2 b5 15. Rad1 a5 16. Nb6 Qb7 17. Nxa8 Rxa8 18. e4 b4 19. Ng1 a4 20. Nf3 a3 21. Bc1 Re8 22. Rde1 Nd8 23. Qf2 f6 24. Be3 Nec6 25. h3 Nd4 26. Nh4 Kf7 27. Bxd4 exd4 28. f5 g5 29. Ng6 Rg8 30. Qf3 Ke8 31. Qxh5 Qf7 32. Qf3 Qb7 33. Rh1 Nf7 34. h4 gxh4 35. Rxh4 Ne5 36. Nxe5 dxe5 37. Reh1 Qf7 38. Qh5 Qxh5 39. Rxh5 Kf7 40. Rh7 Kf8 41. Kf3 Kf7 42. R1h4 Kf8 43. Rg4 Kf7 44. Rhxg7+ 1-0

[Event "XVII MetLife Najdorf Open 2017"]
[Site "Warsaw"]
[Date "2017.07.15"]
[Round "7"]
[White "Teclaf, Pawel"]
[Black "Kowalski, Igor"]
[Result "1-0"]
[ECO "A45"]
[WhiteElo "2372"]
[BlackElo "2226"]
[Annotator "NA RC"]
[PlyCount "65"]
[EventDate "2017.??.??"]
[EventType "swiss"]
[EventCountry "POL"]
[SourceTitle "playchess.com"]
[Source "ChessBase"]
[SourceQuality "1"]
[TimeControl "40/5400+30:1800+30"]

1. d4 {[%emt 0:00:00]} Nf6 {[%emt 0:00:04]} 2. Bg5 {[%emt 0:01:00]} e6 {[%emt 0:00:36]} 3. e4 {[%emt 0:00:04]} h6 {[%emt 0:00:03]} 4. Bxf6 {[%emt 0:00:04]} Qxf6 {[%emt 0:00:04]} 5. c3 {[%emt 0:01:21]} d6 {[%emt 0:00:53]} 6. Bd3 {[%emt 0:00:37]} Qg5 {[%emt 0:10:31]} 7. Nf3 {[%emt 0:22:27]} Qxg2 {[%emt 0:06:14]} 8. Rg1 {[%emt 0:00:05]} Qh3 {[%emt 0:00:03]} 9. Rg3 {[%emt 0:14:19]} Qh5 {[%emt 0:00:04]} 10. Nbd2 {[%emt 0:00:36]} g5 {[%emt 0:21:12]} 11. h3 {[%emt 0:10:26]} Nc6 {[%emt 0:04:19]} 12. Qb3 {[%emt 0:06:40]} Ne7 {[%emt 0:12:55]} 13. Be2 {[%emt 0:06:11]} Qg6 {[%emt 0:00:55]} 14. O-O-O {[%emt 0:00:49]} f5 {[%emt 0:01:47]} 15. exf5 {[%emt 0:02:00]} exf5 {[%emt 0:01:53]} 16. Bd3 {[%emt 0:02:31]} Qf7 {[%emt 0:08:57]} 17. Bc4 {[%emt 0:01:24]} d5 {[%emt 0:00:52]} 18. Ne5 {[%emt 0:00:30]} dxc4 19. Qa4+ b5 {[%emt 0:03:14]} 20. Qxb5+ {[%emt 0:04:47]} c6 {[%emt 0:00:03]} 21. Ndxc4 {[%emt 0:00:50]} Qf6 {[%emt 0:08:41]} 22. Qa4 {[%emt 0:00:21]} Bg7 {[%emt 0:05:33]} 23. d5 {[%emt 0:00:47]} f4 {[%emt 0:04:31]} 24. Rgd3 {[%emt 0:05:01]} O-O {[%emt 0:03:47]} 25. d6 {[%emt 0:01:10]} Nf5 {[%emt 0:01:00]} 26. d7 {[%emt 0:02:32]} Bb7 {[%emt 0:00:44]} 27. Ng4 {[%emt 0:01:18]} Qd8 {[%emt 0:03:26]} 28. Na5 {[%emt 0:00:45]} Ba6 {[%emt 0:01:27]} 29. Nxc6 {[%emt 0:00:20]} Bxd3 {[%emt 0:00:05]} 30. Nxd8 {[%emt 0:00:05]} Be2 {[%emt 0:00:15]} 31. Ne6 {[%emt 0:00:43]} Bxd1 {[%emt 0:00:18]} 32. Qxd1 {[%emt 0:00:10]} h5 {[%emt 0:00:16]} 33. Nxf8 {[%emt 0:00:22]} 1-0

[Event "XVII MetLife Najdorf Open 2017"]
[Site "Warsaw"]
[Date "2017.07.15"]
[Round "7"]
[White "Zylka, Stanislaw"]
[Black "Jaroch, Karol"]
[Result "1-0"]
[ECO "A40"]
[WhiteElo "2368"]
[BlackElo "2207"]
[Annotator "NA RC"]
[PlyCount "97"]
[EventDate "2017.??.??"]
[EventType "swiss"]
[EventCountry "POL"]
[SourceTitle "playchess.com"]
[Source "ChessBase"]
[SourceQuality "1"]
[TimeControl "40/5400+30:1800+30"]

1. d4 {[%emt 0:00:00]} e6 {[%emt 0:00:07]} 2. Nf3 {[%emt 0:00:00]} Nf6 {[%emt 0:00:21]} 3. g3 {[%emt 0:00:03]} b6 {[%emt 0:13:05]} 4. Bg2 {[%emt 0:00:11]} Bb7 {[%emt 0:00:02]} 5. O-O {[%emt 0:00:11]} Be7 {[%emt 0:00:08]} 6. c4 {[%emt 0:00:06]} d5 {[%emt 0:00:13]} 7. Ne5 {[%emt 0:02:12]} O-O {[%emt 0:00:22]} 8. Nc3 {[%emt 0:01:12]} Nbd7 {[%emt 0:10:45]} 9. Bf4 {[%emt 0:02:03]} c6 {[%emt 0:02:42]} 10. Qa4 {[%emt 0:11:38]} Nxe5 {[%emt 0:02:32]} 11. Bxe5 {[%emt 0:10:09]} a6 {[%emt 0:04:15]} 12. cxd5 {[%emt 0:01:25]} cxd5 {[%emt 0:00:33]} 13. Rfc1 {[%emt 0:15:22]} b5 {[%emt 0:02:10]} 14. Qd1 {[%emt 0:02:28]} Rc8 {[%emt 0:01:07]} 15. a4 {[%emt 0:06:38]} b4 {[%emt 0:07:38]} 16. Na2 {[%emt 0:00:28]} Qb6 {[%emt 0:01:44]} 17. h4 {[%emt 0:18:01]} Nd7 {[%emt 0:22:25]} 18. Bf4 {[%emt 0:00:42]} Nb8 {[%emt 0:01:40]} 19. e3 {[%emt 0:08:40]} Nc6 {[%emt 0:03:21]} 20. Bf1 {[%emt 0:02:42]} b3 {[%emt 0:09:11]} 21. Nc3 {[%emt 0:00:09]} Na5 {[%emt 0:00:03]} 22. Bd3 {[%emt 0:00:30]} Bb4 {[%emt 0:02:30]} 23. Ne2 {[%emt 0:05:09]} Rxc1 {[%emt 0:01:15]} 24. Nxc1 {[%emt 0:00:22]} Be7 {[%emt 0:00:11]} 25. h5 {[%emt 0:01:14]} h6 {[%emt 0:00:52]} 26. Qg4 {[%emt 0:00:41]} f5 {[%emt 0:01:48]} 27. Qg6 {[%emt 0:00:48]} Kh8 {[%emt 0:04:53]} 28. g4 {[%emt 0:04:21]} Qc6 {[%emt 0:05:52]} 29. Be5 {[%emt 0:00:47]} Bf6 {[%emt 0:00:44]} 30. gxf5 {[%emt 0:00:08]} exf5 {[%emt 0:01:01]} 31. Bxf5 {[%emt 0:01:31]} Kg8 {[%emt 0:00:02]} 32. Nd3 {[%emt 0:01:09]} Nc4 {[%emt 0:00:10]} 33. Rc1 {[%emt 0:01:00]} Bc8 {[%emt 0:00:57]} 34. Qh7+ {[%emt 0:01:30]} Kf7 {[%emt 0:00:01]} 35. Nb4 {[%emt 0:01:04]} Bxf5 {[%emt 0:00:29]} 36. Qxf5 {[%emt 0:00:08]} Qe6 {[%emt 0:00:15]} 37. Qxe6+ {[%emt 0:02:14]} Kxe6 {[%emt 0:00:04]} 38. Bxf6 {[%emt 0:00:09]} gxf6 {[%emt 0:00:09]} 39. Nxa6 {[%emt 0:00:48]} Nd2 {[%emt 0:01:49]} 40. Nc5+ {[%emt 0:00:00]} Kf5 {[%emt 0:00:02]} 41. f3 {[%emt 0:05:04]} Nxf3+ {[%emt 0:01:38]} 42. Kf2 {[%emt 0:03:13]} Nd2 {[%emt 0:00:06]} 43. Ke2 {[%emt 0:03:29]} Nc4 {[%emt 0:00:12]} 44. e4+ {[%emt 0:00:49]} Kg4 {[%emt 0:00:07]} 45. exd5 {[%emt 0:00:19]} Nxb2 {[%emt 0:00:07]} 46. d6 {[%emt 0:02:51]} Rd8 {[%emt 0:03:38]} 47. Nb7 {[%emt 0:03:36]} Rb8 {[%emt 0:03:15]} 48. d7 {[%emt 0:00:24]} Nxa4 {[%emt 0:00:05]} 49. d8=Q {[%emt 0:00:11]} 1-0

[Event "XVII MetLife Najdorf Open 2017"]
[Site "Warsaw"]
[Date "2017.07.15"]
[Round "7"]
[White "Zujev, Oleg"]
[Black "Adamski, Jan"]
[Result "1-0"]
[ECO "E42"]
[WhiteElo "2366"]
[BlackElo "2250"]
[Annotator "NA RC"]
[PlyCount "63"]
[EventDate "2017.??.??"]
[EventType "swiss"]
[EventCountry "POL"]
[SourceTitle "playchess.com"]
[Source "ChessBase"]
[SourceQuality "1"]
[TimeControl "40/5400+30:1800+30"]

1. d4 Nf6 2. c4 e6 3. Nc3 Bb4 4. e3 c5 5. Nge2 cxd4 6. exd4 O-O 7. a3 Be7 8. Nf4 d6 9. Be2 Nc6 10. Be3 Nxd4 11. Qxd4 e5 12. Qd2 exf4 13. Bxf4 Be6 14. Nd5 Bxd5 15. cxd5 Ne4 16. Qb4 Nc5 17. O-O Bf6 18. Rfe1 Rc8 19. Bf1 Qc7 20. Rad1 a6 21. a4 b6 22. h3 g6 23. Re3 Rfe8 24. Rde1 Rxe3 25. Rxe3 h5 26. b3 a5 27. Qe1 Nd7 28. Re8+ Rxe8 29. Qxe8+ Kg7 30. Bb5 Be5 31. Qxd7 Qc1+ 32. Bxc1 1-0

[Event "XVII MetLife Najdorf Open 2017"]
[Site "Warsaw"]
[Date "2017.07.15"]
[Round "7"]
[White "Lagunow, Raphael"]
[Black "Dmochowska, Agnieszka"]
[Result "1-0"]
[ECO "C03"]
[WhiteElo "2348"]
[BlackElo "2202"]
[Annotator "NA RC"]
[PlyCount "81"]
[EventDate "2017.??.??"]
[EventType "swiss"]
[EventCountry "POL"]
[SourceTitle "playchess.com"]
[Source "ChessBase"]
[SourceQuality "1"]
[TimeControl "40/5400+30:1800+30"]

1. e4 {[%emt 0:01:39]} e6 {[%emt 0:00:18]} 2. d4 {[%emt 0:00:16]} d5 {[%emt 0:00:22]} 3. Nd2 {[%emt 0:00:28]} Be7 {[%emt 0:00:40]} 4. Bd3 {[%emt 0:14:36]} c5 {[%emt 0:09:07]} 5. dxc5 {[%emt 0:08:02]} Nc6 {[%emt 0:05:37]} 6. Ngf3 {[%emt 0:01:45]} Nf6 {[%emt 0:00:27]} 7. exd5 {[%emt 0:01:11]} exd5 {[%emt 0:01:46]} 8. Nb3 {[%emt 0:06:58]} O-O {[%emt 0:01:36]} 9. O-O {[%emt 0:09:31]} Bg4 {[%emt 0:04:06]} 10. h3 {[%emt 0:01:35]} Bh5 {[%emt 0:03:23]} 11. Bg5 {[%emt 0:01:25]} Na5 {[%emt 0:19:45]} 12. c3 {[%emt 0:10:21]} Nxb3 {[%emt 0:16:01]} 13. axb3 {[%emt 0:00:43]} h6 {[%emt 0:04:18]} 14. Bxf6 {[%emt 0:08:07]} Bxf6 {[%emt 0:00:41]} 15. g4 {[%emt 0:04:21]} Bg6 {[%emt 0:00:04]} 16. Qc2 {[%emt 0:08:38]} Qc7 {[%emt 0:02:56]} 17. b4 {[%emt 0:07:22]} a5 {[%emt 0:01:38]} 18. bxa5 {[%emt 0:03:23]} Qxc5 {[%emt 0:00:52]} 19. Kg2 {[%emt 0:00:06]} d4 {[%emt 0:11:27]} 20. Bxg6 {[%emt 0:01:26]} fxg6 {[%emt 0:00:06]} 21. Qb3+ {[%emt 0:01:16]} Kh7 {[%emt 0:01:45]} 22. cxd4 {[%emt 0:03:33]} Bxd4 {[%emt 0:00:06]} 23. Rfc1 {[%emt 0:00:16]} Qa7 {[%emt 0:02:20]} 24. Rc2 {[%emt 0:00:50]} Rf6 {[%emt 0:04:30]} 25. Rd1 {[%emt 0:01:25]} Bc5 {[%emt 0:03:02]} 26. Qb5 {[%emt 0:00:30]} Raf8 {[%emt 0:03:11]} 27. Rd3 {[%emt 0:01:49]} Bd6 {[%emt 0:00:54]} 28. b4 {[%emt 0:01:06]} Qa8 {[%emt 0:01:43]} 29. Rcc3 {[%emt 0:00:43]} Qb8 {[%emt 0:00:25]} 30. Rc4 {[%emt 0:00:23]} R8f7 {[%emt 0:00:54]} 31. Qd5 {[%emt 0:00:16]} Bc7 {[%emt 0:00:22]} 32. Rdc3 {[%emt 0:00:36]} Rf4 {[%emt 0:01:08]} 33. Rxf4 {[%emt 0:00:24]} Rxf4 {[%emt 0:00:10]} 34. Rc4 {[%emt 0:00:04]} Rf6 {[%emt 0:00:21]} 35. Qe4 {[%emt 0:01:11]} Bd6 {[%emt 0:01:13]} 36. b5 {[%emt 0:00:15]} Qa7 {[%emt 0:00:37]} 37. b6 {[%emt 0:00:50]} Qa6 {[%emt 0:00:35]} 38. Rc8 {[%emt 0:00:23]} Qxa5 {[%emt 0:00:06]} 39. Qxb7 {[%emt 0:00:20]} Qb4 {[%emt 0:00:36]} 40. Qa8 {[%emt 0:00:00]} Rf8 {[%emt 0:00:50]} 41. b7 {[%emt 0:06:25]} 1-0

[Event "XVII MetLife Najdorf Open 2017"]
[Site "Warsaw"]
[Date "2017.07.15"]
[Round "7"]
[White "Spitzl, Vinzent"]
[Black "Zochowski, Kacper"]
[Result "1/2-1/2"]
[ECO "C95"]
[WhiteElo "2348"]
[BlackElo "2240"]
[Annotator "NA RC"]
[PlyCount "110"]
[EventDate "2017.??.??"]
[EventType "swiss"]
[EventCountry "POL"]
[SourceTitle "playchess.com"]
[Source "ChessBase"]
[SourceQuality "1"]
[TimeControl "40/5400+30:1800+30"]

1. e4 {[%emt 0:00:00]} e5 {[%emt 0:04:31]} 2. Nf3 {[%emt 0:00:00]} Nc6 {[%emt 0:00:11]} 3. Bb5 {[%emt 0:00:00]} a6 {[%emt 0:00:32]} 4. Ba4 {[%emt 0:00:00]} Nf6 {[%emt 0:00:28]} 5. O-O {[%emt 0:00:04]} b5 {[%emt 0:00:17]} 6. Bb3 {[%emt 0:00:04]} Be7 {[%emt 0:00:10]} 7. Re1 {[%emt 0:00:37]} d6 {[%emt 0:01:11]} 8. c3 {[%emt 0:00:05]} O-O {[%emt 0:00:14]} 9. h3 {[%emt 0:00:23]} Nb8 {[%emt 0:07:57]} 10. d4 {[%emt 0:00:09]} Nbd7 {[%emt 0:00:19]} 11. Nbd2 {[%emt 0:00:11]} Bb7 {[%emt 0:01:44]} 12. Bc2 {[%emt 0:00:08]} Re8 {[%emt 0:01:05]} 13. Nf1 {[%emt 0:00:11]} Bf8 {[%emt 0:00:43]} 14. Ng3 {[%emt 0:00:12]} g6 {[%emt 0:00:50]} 15. a4 {[%emt 0:03:05]} c5 {[%emt 0:05:35]} 16. d5 {[%emt 0:00:08]} c4 {[%emt 0:03:50]} 17. Bg5 {[%emt 0:01:03]} Nc5 {[%emt 0:10:04]} 18. Qd2 {[%emt 0:01:20]} Be7 {[%emt 0:00:37]} 19. Bh6 {[%emt 0:00:32]} Bf8 {[%emt 0:16:05]} 20. Be3 {[%emt 0:09:52]} Qc7 {[%emt 0:05:25]} 21. Ra3 {[%emt 0:01:10]} Nfd7 {[%emt 0:02:26]} 22. h4 {[%emt 0:06:47]} Nb6 {[%emt 0:09:11]} 23. axb5 {[%emt 0:08:28]} axb5 {[%emt 0:00:07]} 24. Rxa8 {[%emt 0:00:07]} Rxa8 {[%emt 0:01:03]} 25. h5 {[%emt 0:01:01]} Qe7 {[%emt 0:07:09]} 26. Bg5 {[%emt 0:11:10]} f6 {[%emt 0:02:19]} 27. Be3 {[%emt 0:00:43]} Nbd7 {[%emt 0:04:33]} 28. Nh4 {[%emt 0:04:06]} Qf7 {[%emt 0:01:29]} 29. Qe2 {[%emt 0:03:47]} Bc8 {[%emt 0:11:18]} 30. Qg4 {[%emt 0:06:02]} Nb6 {[%emt 0:00:19]} 31. Qe2 {[%emt 0:16:41]} Ra2 {[%emt 0:00:29]} 32. Bb1 {[%emt 0:00:09]} Ra1 {[%emt 0:00:12]} 33. Rf1 {[%emt 0:08:08]} Qe8 {[%emt 0:02:02]} 34. Nf3 {[%emt 0:02:14]} Bg4 {[%emt 0:00:00]} 35. hxg6 {[%emt 0:00:58]} hxg6 {[%emt 0:00:00]} 36. Qd2 {[%emt 0:00:39]} Nb3 {[%emt 0:00:25]} 37. Qc2 {[%emt 0:00:10]} Bxf3 {[%emt 0:01:01]} 38. gxf3 {[%emt 0:00:08]} Nd7 {[%emt 0:00:10]} 39. Qe2 {[%emt 0:02:36]} Bg7 {[%emt 0:00:50]} 40. Bc2 {[%emt 0:00:00]} Rxf1+ {[%emt 0:01:00]} 41. Qxf1 {[%emt 0:04:36]} Nbc5 {[%emt 0:00:45]} 42. Qa1 {[%emt 0:04:07]} Qb8 {[%emt 0:03:24]} 43. Qa5 {[%emt 0:00:47]} Kh7 {[%emt 0:00:36]} 44. Nf1 {[%emt 0:07:58]} Bh6 {[%emt 0:01:40]} 45. Bxc5 {[%emt 0:01:01]} Nxc5 {[%emt 0:00:58]} 46. Ne3 {[%emt 0:00:14]} Bf4 {[%emt 0:07:00]} 47. Kf1 {[%emt 0:03:14]} Kg7 {[%emt 0:01:43]} 48. Ke2 {[%emt 0:00:10]} Kf7 {[%emt 0:01:01]} 49. Qb4 {[%emt 0:01:37]} Qb7 {[%emt 0:01:31]} 50. Nf1 {[%emt 0:09:55]} Qa6 {[%emt 0:01:01]} 51. Nd2 {[%emt 0:02:57]} Bxd2 {[%emt 0:06:46]} 52. Kxd2 {[%emt 0:00:39]} Ke7 {[%emt 0:01:47]} 53. b3 {[%emt 0:02:20]} cxb3 {[%emt 0:01:39]} 54. Bxb3 {[%emt 0:00:07]} Qa1 {[%emt 0:04:15]} 55. Bd1 {[%emt 0:00:42]} Qa2+ {[%emt 0:01:01]} 1/2-1/2

[Event "XVII MetLife Najdorf Open 2017"]
[Site "Warsaw"]
[Date "2017.07.15"]
[Round "7"]
[White "Bartel, Michal"]
[Black "Szostko, Jakub"]
[Result "1/2-1/2"]
[ECO "B50"]
[WhiteElo "2343"]
[BlackElo "2208"]
[Annotator "RC"]
[PlyCount "61"]
[EventDate "2017.??.??"]
[EventType "swiss"]
[EventCountry "POL"]
[SourceTitle "playchess.com"]
[Source "ChessBase"]
[SourceQuality "1"]
[TimeControl "40/5400+30:1800+30"]

1. e4 {[%emt 0:00:00]} c5 {[%emt 0:00:05]} 2. Nf3 {[%emt 0:00:00]} d6 {[%emt 0:00:10]} 3. Nc3 {[%emt 0:00:45]} Nf6 {[%emt 0:00:29]} 4. d4 {[%emt 0:00:13]} cxd4 {[%emt 0:00:10]} 5. Qxd4 {[%emt 0:00:45]} a6 {[%emt 0:03:57]} 6. e5 {[%emt 0:00:14]} Nc6 {[%emt 0:01:05]} 7. Qa4 {[%emt 0:00:05]} dxe5 {[%emt 0:00:33]} 8. Nxe5 {[%emt 0:00:07]} Bd7 {[%emt 0:00:58]} 9. Nxd7 {[%emt 0:00:08]} Qxd7 {[%emt 0:00:28]} 10. Bd2 {[%emt 0:00:14]} g6 {[%emt 0:09:06]} 11. O-O-O {[%emt 0:00:56]} Bg7 {[%emt 0:02:39]} 12. Be3 {[%emt 0:09:37]} Qc8 {[%emt 0:04:12]} 13. Be2 {[%emt 0:06:46]} O-O {[%emt 0:01:29]} 14. Bf3 {[%emt 0:02:31]} Ne5 {[%emt 0:12:15]} 15. Nd5 {[%emt 0:00:54]} Nxd5 {[%emt 0:01:18]} 16. Bxd5 {[%emt 0:00:16]} e6 {[%emt 0:03:25]} 17. Bb3 {[%emt 0:01:38]} b5 {[%emt 0:02:18]} 18. Qe4 {[%emt 0:04:09]} a5 {[%emt 0:11:34]} 19. a4 {[%emt 0:05:54]} bxa4 {[%emt 0:02:07]} 20. Qxa4 {[%emt 0:01:23]} Rb8 {[%emt 0:01:59]} 21. Kb1 {[%emt 0:00:25]} Rb4 {[%emt 0:04:42]} 22. Qxa5 {[%emt 0:03:14]} Qb7 {[%emt 0:00:46]} 23. Rd8 {[%emt 0:02:10]} Nc4 {[%emt 0:08:53]} 24. Rxf8+ {[%emt 0:01:02]} Bxf8 {[%emt 0:00:10]} 25. Qg5 {[%emt 0:11:38]} Rxb3 {[%emt 0:09:04]} 26. cxb3 {[%emt 0:00:24]} Qxb3 {[%emt 0:00:53]} 27. Bc1 {[%emt 0:00:22]} Na3+ {[%emt 0:02:39]} 28. Ka1 {[%emt 0:00:19]} Nc2+ {[%emt 0:02:06]} 29. Kb1 {[%emt 0:00:02]} Na3+ {[%emt 0:02:27]} 30. Ka1 {[%emt 0:00:04]} Nc2+ {[%emt 0:07:18]} 31. Kb1 {[%emt 0:00:15]} 1/2-1/2